fUSD/lending_fUSD_20240419
["ID","MTS","AMOUNT","RATE_DAILY","PERIOD"]
[322977350,1713556254560,-151.0,0.00016438,2]
[322977351,1713556254575,-151.0,0.00016438,2]
[322977352,1713556254585,-151.0,0.00016438,2]
[322977353,1713556254594,-244.92218,0.00016438,2]
[322977354,1713556254603,-151.0,0.00016438,2]
[322977355,1713556254612,-151.0,0.00016438,2]
[322977356,1713556254621,-151.0,0.00016438,2]
[322977357,1713556254629,-151.0,0.00016438,2]
[322977358,1713556254639,-151.0,0.00016438,2]
[322977359,1713556254648,-151.0,0.00016438,2]
[322977360,1713556254657,-151.0,0.00016438,2]
[322977361,1713556254666,-151.0,0.00016438,2]
[322977362,1713556254675,-151.0,0.00016438,2]
[322977363,1713556254684,-151.0,0.00016438,2]
[322977364,1713556254694,-151.0,0.00016438,2]
[322977365,1713556254703,-151.0,0.00016438,2]
[322977366,1713556254712,-151.0,0.00016438,2]
[322977367,1713556254721,-151.0,0.00016438,2]
[322977368,1713556254731,-151.0,0.00016438,2]
[322977369,1713556254740,-151.0,0.00016438,2]
[322977370,1713556254749,-151.0,0.00016438,2]
[322977371,1713556254759,-151.0,0.00016438,2]
[322977372,1713556254769,-151.0,0.00016438,2]
[322977373,1713556254778,-151.0,0.00016438,2]
[322977374,1713556254787,-151.0,0.00016438,2]
[322977375,1713556254797,-151.0,0.00016438,2]
[322977376,1713556254806,-151.0,0.00016438,2]
[322977377,1713556254819,-224.960814,0.00016438,2]
[322977378,1713556254828,-151.0,0.00016438,2]
[322977379,1713556254837,-151.0,0.00016438,2]
[322977380,1713556254846,-151.0,0.00016438,2]
[322977381,1713556254855,-151.0,0.00016438,2]
[322977382,1713556254864,-151.0,0.00016438,2]
[322977383,1713556254874,-151.0,0.00016438,2]
[322977384,1713556254883,-151.0,0.00016438,2]
[322977385,1713556254892,-151.0,0.00016438,2]
[322977386,1713556254901,-151.0,0.00016438,2]
[322977387,1713556254910,-151.0,0.00016438,2]
[322977388,1713556254919,-151.0,0.00016438,2]
[322977389,1713556254929,-338.526409,0.00016438,2]
[322977390,1713556254938,-338.526409,0.00016438,2]
[322977391,1713556254948,-338.526409,0.00016438,2]
[322977392,1713556254958,-338.526409,0.00016438,2]
[322977393,1713556254967,-338.526409,0.00016438,2]
[322977394,1713556254976,-338.526409,0.00016438,2]
[322977395,1713556254985,-338.526409,0.00016438,2]
[322977396,1713556254994,-338.526409,0.00016438,2]
[322977397,1713556255004,-338.526409,0.00016438,2]
[322977398,1713556255014,-338.526409,0.00016438,2]
[322977399,1713556255028,-338.526409,0.00016438,2]
[322977400,1713556255039,-338.526409,0.00016438,2]
[322977401,1713556255049,-1585.91,0.00016438,2]
[322977402,1713556255059,-151.0,0.00016438,2]
[322977403,1713556255070,-151.0,0.00016438,2]
[322977404,1713556255079,-151.0,0.00016438,2]
[322977405,1713556255088,-151.0,0.00016438,2]
[322977406,1713556255098,-151.0,0.00016438,2]
[322977407,1713556255107,-151.0,0.00016438,2]
[322977408,1713556255116,-151.0,0.00016438,2]
[322977409,1713556255126,-151.0,0.00016438,2]
[322977410,1713556255136,-151.0,0.00016438,2]
[322977411,1713556255145,-243.759198,0.00016438,2]
[322977412,1713556255154,-151.0,0.00016438,2]
[322977413,1713556255164,-151.0,0.00016438,2]
[322977414,1713556255173,-151.0,0.00016438,2]
[322977415,1713556255182,-151.0,0.00016438,2]
[322977416,1713556255193,-151.0,0.00016438,2]
[322977417,1713556255204,-151.0,0.00016438,2]
[322977418,1713556255215,-151.0,0.00016438,2]
[322977419,1713556255225,-151.0,0.00016438,2]
[322977420,1713556255235,-151.0,0.00016438,2]
[322977421,1713556255246,-151.0,0.00016438,2]
[322977422,1713556255257,-151.0,0.00016438,2]
[322977423,1713556255267,-151.0,0.00016438,2]
[322977424,1713556255278,-151.0,0.00016438,2]
[322977425,1713556255288,-151.0,0.00016438,2]
[322977426,1713556255298,-151.0,0.00016438,2]
[322977427,1713556255308,-151.0,0.00016438,2]
[322977428,1713556255319,-151.0,0.00016438,2]
[322977429,1713556255328,-151.0,0.00016438,2]
[322977430,1713556255337,-151.0,0.00016438,2]
[322977431,1713556255347,-151.0,0.00016438,2]
[322977432,1713556255355,-151.0,0.00016438,2]
[322977433,1713556255365,-151.0,0.00016438,2]
[322977434,1713556255374,-151.0,0.00016438,2]
[322977435,1713556255382,-151.0,0.00016438,2]
[322977436,1713556255391,-151.0,0.00016438,2]
[322977437,1713556255400,-151.0,0.00016438,2]
[322977438,1713556255409,-151.0,0.00016438,2]
[322977439,1713556255418,-151.0,0.00016438,2]
[322977440,1713556255427,-151.0,0.00016438,2]
[322977441,1713556255437,-151.0,0.00016438,2]
[322977442,1713556255446,-151.0,0.00016438,2]
[322977443,1713556255455,-151.0,0.00016438,2]
[322977444,1713556255464,-151.0,0.00016438,2]
[322977445,1713556255473,-225.400374,0.00016438,2]
[322977446,1713556255482,-232.951213,0.00016438,2]
[322977447,1713556255491,-359.907916,0.00016438,2]
[322977448,1713556255500,-232.951213,0.00016438,2]
[322977449,1713556255509,-232.951213,0.00016438,2]
[322977450,1713556255518,-359.907916,0.00016438,2]
[322977451,1713556255527,-359.907916,0.00016438,2]
[322977452,1713556255536,-359.907916,0.00016438,2]
[322977453,1713556255545,-359.907916,0.00016438,2]
[322977454,1713556255554,-232.951213,0.00016438,2]
[322977455,1713556255565,-359.907916,0.00016438,2]
[322977456,1713556255574,-232.951213,0.00016438,2]
[322977457,1713556255583,-232.951213,0.00016438,2]
[322977458,1713556255593,-359.907916,0.00016438,2]
[322977459,1713556255602,-359.907916,0.00016438,2]
[322977460,1713556255611,-359.907916,0.00016438,2]
[322977461,1713556255620,-232.951213,0.00016438,2]
[322977462,1713556255629,-359.907916,0.00016438,2]
[322977463,1713556255638,-232.951213,0.00016438,2]
[322977464,1713556255647,-359.907916,0.00016438,2]
[322977465,1713556255657,-232.951213,0.00016438,2]
[322977466,1713556255666,-359.907916,0.00016438,2]
[322977467,1713556255675,-232.951213,0.00016438,2]
[322977468,1713556255684,-232.951213,0.00016438,2]
[322977469,1713556255693,-232.951213,0.00016438,2]
[322977470,1713556255702,-1865.920918,0.00016438,2]
[322977471,1713556255712,-1865.920918,0.00016438,2]
[322977472,1713556255721,-1865.920918,0.00016438,2]
[322977473,1713556255730,-1865.920918,0.00016438,2]
[322977474,1713556255739,-1865.920918,0.00016438,2]
[322977475,1713556255749,-1865.920918,0.00016438,2]
[322977476,1713556255758,-151.0,0.00016438,2]
[322977477,1713556255767,-227.816751,0.00016438,2]
[322977478,1713556255776,-1865.920918,0.00016438,2]
[322977479,1713556255786,-1865.920918,0.00016438,2]
[322977480,1713556255795,-1865.920918,0.00016438,2]
[322977481,1713556255808,-1865.920918,0.00016438,2]
[322977482,1713556255820,-1865.920918,0.00016438,2]
[322977483,1713556255829,-1865.920918,0.00016438,2]
[322977484,1713556255838,-173.799346,0.00016438,2]
[322977485,1713556255847,-173.799346,0.00016438,2]
[322977486,1713556255856,-173.799346,0.00016438,2]
[322977487,1713556255866,-173.799346,0.00016438,2]
[322977488,1713556255874,-173.799346,0.00016438,2]
[322977489,1713556255883,-173.799346,0.00016438,2]
[322977490,1713556255893,-173.799346,0.00016438,2]
[322977491,1713556255901,-151.0,0.00016438,2]
[322977492,1713556255910,-173.799346,0.00016438,2]
[322977493,1713556255922,-173.799346,0.00016438,2]
[322977494,1713556255931,-151.0,0.00016438,2]
[322977495,1713556255940,-173.799346,0.00016438,2]
[322977496,1713556255950,-151.0,0.00016438,2]
[322977497,1713556255959,-173.799346,0.00016438,2]
[322977498,1713556255969,-151.0,0.00016438,2]
[322977499,1713556255978,-173.799346,0.00016438,2]
[322977500,1713556255986,-151.0,0.00016438,2]
[322977501,1713556255995,-11479.47900566,0.00016466,2]
[322977502,1713556256004,-167.0,0.00016484,2]
[322977503,1713556256014,-200.0,0.00016497,2]
[322977504,1713556256027,-1000.0,0.00016497,2]
[322977505,1713556256036,-500.0,0.00016497,2]
[322977506,1713556256045,-200.0,0.00016497,2]
[322977507,1713556256054,-19496.21587412,0.000165,2]
[322977508,1713556256066,-1223.49294636,0.000165,2]
[322977509,1713556256075,-150.0,0.000165,2]
[322977510,1713556256084,-575.984594,0.00016559,2]
[322977511,1713556256093,-3455.907565,0.00016559,2]
[322977512,1713556256103,-1120.0,0.00016576,2]
[322977513,1713556256114,-500.0,0.00016677,2]
[322977514,1713556256123,-500.0,0.00016686,2]
[322977515,1713556256132,-500.0,0.00016694,2]
[322977516,1713556256141,-325.9346367,0.00016697,2]
[322977517,1713556256150,-683.27995213,0.00016697,2]
[322977518,1713556256159,-10152.54531155,0.00016697,2]
[322977519,1713556256168,-5929.0344074,0.00016701,2]
[322977520,1713556256177,-35217.5705315,0.00016701,2]
[322977521,1713556256186,-500.0,0.00016703,2]
[322977522,1713556256195,-867.73600556,0.0001671,2]
[322977523,1713556256204,-500.0,0.00016712,2]
[322977524,1713556256213,-500.0,0.00016712,2]
[322977525,1713556256223,-500.0,0.00016712,2]
[322977526,1713556256231,-500.0,0.00016712,2]
[322977527,1713556256240,-500.0,0.00016712,2]
[322977528,1713556256249,-500.0,0.00016712,2]
[322977529,1713556256258,-775.86,0.00016712,2]
[322977530,1713556256267,-500.05,0.00016712,2]
[322977531,1713556256276,-500.0,0.00016712,2]
[322977532,1713556256284,-500.0,0.00016712,2]
[322977533,1713556256293,-335.5588387,0.00016712,2]
[322977534,1713556256302,-500.0,0.00016712,2]
[322977535,1713556256313,-500.3,0.00016712,2]
[322977536,1713556256322,-524.36,0.00016712,2]
[322977537,1713556256331,-500.0,0.00016712,2]
[322977538,1713556256339,-500.0,0.00016712,2]
[322977539,1713556256348,-500.0,0.00016712,2]
[322977540,1713556256357,-500.0,0.00016712,2]
[322977541,1713556256366,-500.0,0.00016712,2]
[322977542,1713556256375,-500.0,0.00016712,2]
[322977543,1713556256384,-500.0,0.00016712,2]
[322977544,1713556256393,-805.65,0.00016712,2]
[322977545,1713556256403,-500.0,0.00016712,2]
[322977546,1713556256412,-500.0,0.00016712,2]
[322977547,1713556256421,-656.97,0.00016712,2]
[322977548,1713556256431,-577.04,0.00016712,2]
[322977549,1713556256441,-703.81,0.00016712,2]
[322977550,1713556256450,-504.0,0.00016712,2]
[322977551,1713556256459,-500.0,0.00016712,2]
[322977552,1713556256468,-500.0,0.00016712,2]
[322977553,1713556256631,-500.0,0.00016712,2]
[322977554,1713556256661,-500.0,0.00016712,2]
[322977555,1713556256670,-500.0,0.00016712,2]
[322977556,1713556256680,-500.0,0.00016712,2]
[322977557,1713556256690,-500.0,0.00016712,2]
[322977558,1713556256699,-208.25420715,0.00016712,2]
[322977559,1713556256709,-544.31,0.00016712,2]
[322977560,1713556256719,-500.0,0.00016712,2]
[322977561,1713556256729,-500.0,0.00016712,2]
[322977562,1713556256738,-500.0,0.00016712,2]
[322977563,1713556256748,-225.71729257,0.00016712,2]
[322977564,1713556256758,-500.0,0.00016712,2]
[322977565,1713556256767,-500.0,0.00016712,2]
[322977566,1713556256777,-500.0,0.00016712,2]
[322977567,1713556256787,-500.0,0.00016712,2]
[322977568,1713556256796,-500.0,0.00016712,2]
[322977569,1713556256805,-500.0,0.00016712,2]
[322977570,1713556256816,-500.0,0.00016712,2]
[322977571,1713556256826,-569.27,0.00016712,2]
[322977572,1713556256835,-1111.55,0.00016712,2]
[322977573,1713556256845,-605.42488514,0.00016712,2]
[322977574,1713556256855,-500.0,0.00016712,2]
[322977575,1713556256866,-500.0,0.00016712,2]
[322977576,1713556256875,-500.0,0.00016712,2]
[322977577,1713556256885,-500.0,0.00016712,2]
[322977578,1713556256895,-500.0,0.00016712,2]
[322977579,1713556256904,-619.93490611,0.00016712,2]
[322977580,1713556256913,-500.0,0.00016712,2]
[322977581,1713556256923,-500.0,0.00016712,2]
[322977582,1713556256933,-500.0,0.00016712,2]
[322977583,1713556256944,-626.82,0.00016712,2]
[322977584,1713556256954,-1023.08,0.00016712,2]
[322977585,1713556256965,-321.38407021,0.00016712,2]
[322977586,1713556256975,-500.0,0.00016712,2]
[322977587,1713556256985,-500.0,0.00016712,2]
[322977588,1713556256994,-500.0,0.00016712,2]
[322977589,1713556257004,-212.97,0.00016712,2]
[322977590,1713556257015,-500.0,0.00016712,2]
[322977591,1713556257028,-500.0,0.00016712,2]
[322977592,1713556257037,-871.23,0.00016712,2]
[322977593,1713556257046,-818.57,0.00016712,2]
[322977594,1713556257056,-655.24,0.00016712,2]
[322977595,1713556257068,-704.43,0.00016712,2]
[322977596,1713556257077,-500.0,0.00016712,2]
[322977597,1713556257087,-500.0,0.00016712,2]
[322977598,1713556257097,-500.0,0.00016712,2]
[322977599,1713556257107,-743.48,0.00016712,2]
[322977600,1713556257116,-500.0,0.00016712,2]
[322977601,1713556257126,-500.0,0.00016712,2]
[322977602,1713556257135,-500.0,0.00016712,2]
[322977603,1713556257145,-500.0,0.00016712,2]
[322977604,1713556257155,-500.0,0.00016712,2]
[322977605,1713556257165,-500.0,0.00016712,2]
[322977606,1713556257174,-500.0,0.00016712,2]
[322977607,1713556257184,-556.74,0.00016712,2]
[322977608,1713556257194,-500.0,0.00016712,2]
[322977609,1713556257203,-979.53,0.00016712,2]
[322977610,1713556257213,-518.79,0.00016712,2]
[322977611,1713556257222,-517.28,0.00016712,2]
[322977612,1713556257232,-612.1,0.00016712,2]
[322977613,1713556257242,-500.0,0.00016712,2]
[322977614,1713556257251,-500.0,0.00016712,2]
[322977615,1713556257262,-647.92,0.00016712,2]
[322977616,1713556257272,-500.0,0.00016712,2]
[322977617,1713556257282,-500.0,0.00016712,2]
[322977618,1713556257291,-500.0,0.00016712,2]
[322977619,1713556257302,-500.0,0.00016712,2]
[322977620,1713556257311,-500.0,0.00016712,2]
[322977621,1713556257320,-667.48,0.00016712,2]
[322977622,1713556257329,-500.0,0.00016712,2]
[322977623,1713556257337,-500.0,0.00016712,2]
[322977624,1713556257346,-500.0,0.00016712,2]
[322977625,1713556257356,-500.0,0.00016712,2]
[322977626,1713556257366,-500.0,0.00016712,2]
[322977627,1713556257375,-856.04,0.00016712,2]
[322977628,1713556257385,-1301.36,0.00016712,2]
[322977629,1713556257395,-500.0,0.00016712,2]
[322977630,1713556257404,-500.0,0.00016712,2]
[322977631,1713556257414,-770.58,0.00016712,2]
[322977632,1713556257423,-500.0,0.00016712,2]
[322977633,1713556257433,-572.0,0.00016712,2]
[322977634,1713556257443,-500.0,0.00016712,2]
[322977635,1713556257453,-500.0,0.00016712,2]
[322977636,1713556257463,-500.0,0.00016712,2]
[322977637,1713556257473,-634.66,0.00016712,2]
[322977638,1713556257482,-500.0,0.00016712,2]
[322977639,1713556257492,-500.0,0.00016712,2]
[322977640,1713556257501,-574.0,0.00016712,2]
[322977641,1713556257510,-500.0,0.00016712,2]
[322977642,1713556257520,-529.7,0.00016712,2]
[322977643,1713556257530,-500.0,0.00016712,2]
[322977644,1713556257541,-151.0,0.00016712,2]
[322977645,1713556257550,-151.0,0.00016712,2]
[322977646,1713556257560,-211.150657,0.00016712,2]
[322977647,1713556257572,-500.0,0.00016712,2]
[322977648,1713556257582,-500.0,0.00016712,2]
[322977649,1713556257591,-500.0,0.00016712,2]
[322977650,1713556257601,-500.0,0.00016712,2]
[322977651,1713556257610,-500.0,0.00016712,2]
[322977652,1713556257620,-588.39,0.00016712,2]
[322977653,1713556257630,-500.0,0.00016712,2]
[322977654,1713556257640,-500.0,0.00016712,2]
[322977655,1713556257650,-605.36,0.00016712,2]
[322977656,1713556257660,-500.0,0.00016712,2]
[322977657,1713556257670,-500.0,0.00016712,2]
[322977658,1713556257680,-500.0,0.00016712,2]
[322977659,1713556257689,-500.0,0.00016712,2]
[322977660,1713556257699,-500.0,0.00016712,2]
[322977661,1713556257709,-500.0,0.00016712,2]
[322977662,1713556257718,-500.0,0.00016712,2]
[322977663,1713556257728,-500.0,0.00016712,2]
[322977664,1713556257737,-500.0,0.00016712,2]
[322977665,1713556257747,-500.0,0.00016712,2]
[322977666,1713556257756,-862.12,0.00016712,2]
[322977667,1713556257765,-500.0,0.00016712,2]
[322977668,1713556257774,-848.83,0.00016712,2]
[322977669,1713556257784,-500.0,0.00016712,2]
[322977670,1713556257794,-500.0,0.00016712,2]
[322977671,1713556257803,-500.0,0.00016712,2]
[322977672,1713556257816,-500.0,0.00016712,2]
[322977673,1713556257825,-500.0,0.00016712,2]
[322977674,1713556257834,-648.19,0.00016712,2]
[322977675,1713556257843,-500.0,0.00016712,2]
[322977676,1713556257853,-700.55,0.00016712,2]
[322977677,1713556257862,-500.0,0.00016712,2]
[322977678,1713556257872,-1078.38,0.00016712,2]
[322977679,1713556257882,-669.49,0.00016712,2]
[322977680,1713556257891,-150.16550036,0.00016712,2]
[322977681,1713556257902,-500.0,0.00016712,2]
[322977682,1713556257911,-500.0,0.00016712,2]
[322977683,1713556257921,-841.29,0.00016712,2]
[322977684,1713556257931,-500.0,0.00016712,2]
[322977685,1713556257941,-725.77,0.00016712,2]
[322977686,1713556257951,-500.0,0.00016712,2]
[322977687,1713556257961,-500.0,0.00016712,2]
[322977688,1713556257970,-500.0,0.00016712,2]
[322977689,1713556257980,-634.45,0.00016712,2]
[322977690,1713556257990,-500.0,0.00016712,2]
[322977691,1713556258001,-815.9,0.00016712,2]
[322977692,1713556258010,-500.0,0.00016712,2]
[322977693,1713556258024,-528.23,0.00016712,2]
[322977694,1713556258033,-776.0,0.00016712,2]
[322977695,1713556258042,-500.0,0.00016712,2]
[322977696,1713556258052,-939.36,0.00016712,2]
[322977697,1713556258062,-522.65,0.00016712,2]
[322977698,1713556258074,-831.91,0.00016712,2]
[322977699,1713556258083,-500.0,0.00016712,2]
[322977700,1713556258093,-500.0,0.00016712,2]
[322977701,1713556258103,-500.0,0.00016712,2]
[322977702,1713556258113,-976.26,0.00016712,2]
[322977703,1713556258123,-1075.92,0.00016712,2]
[322977704,1713556258133,-770.87,0.00016712,2]
[322977705,1713556258143,-500.0,0.00016712,2]
[322977706,1713556258152,-151.0,0.00016712,2]
[322977707,1713556258161,-151.0,0.00016712,2]
[322977708,1713556258171,-151.0,0.00016712,2]
[322977709,1713556258180,-151.0,0.00016712,2]
[322977710,1713556258189,-977.16,0.00016712,2]
[322977711,1713556258199,-514.7,0.00016712,2]
[322977712,1713556258208,-1077.57,0.00016712,2]
[322977713,1713556258217,-1254.21,0.00016712,2]
[322977714,1713556258226,-500.0,0.00016712,2]
[322977715,1713556258235,-511.15,0.00016712,2]
[322977716,1713556258245,-500.0,0.00016712,2]
[322977717,1713556258254,-383.28,0.00016712,2]
[322977718,1713556258264,-500.0,0.00016712,2]
[322977719,1713556258273,-563.59,0.00016712,2]
[322977720,1713556258282,-706.73,0.00016712,2]
[322977721,1713556258291,-500.0,0.00016712,2]
[322977722,1713556258301,-500.0,0.00016712,2]
[322977723,1713556258310,-500.0,0.00016712,2]
[322977724,1713556258321,-1449.18,0.00016712,2]
[322977725,1713556258330,-500.0,0.00016712,2]
[322977726,1713556258339,-500.0,0.00016712,2]
[322977727,1713556258348,-500.0,0.00016712,2]
[322977728,1713556258358,-939.55,0.00016712,2]
[322977729,1713556258367,-578.99,0.00016712,2]
[322977730,1713556258377,-724.74,0.00016712,2]
[322977731,1713556258387,-500.0,0.00016712,2]
[322977732,1713556258396,-820.92,0.00016712,2]
[322977733,1713556258405,-416.95410165,0.00016712,2]
[322977734,1713556258415,-916.07,0.00016712,2]
[322977735,1713556258425,-1180.26,0.00016712,2]
[322977736,1713556258434,-1070.0,0.00016712,2]
[322977737,1713556258444,-500.0,0.00016712,2]
[322977738,1713556258453,-429.94,0.00016712,2]
[322977739,1713556258462,-698.77,0.00016712,2]
[322977740,1713556258471,-500.0,0.00016712,2]
[322977741,1713556258481,-524.46,0.00016712,2]
[322977742,1713556258491,-735.41,0.00016712,2]
[322977743,1713556258500,-608.99,0.00016712,2]
[322977744,1713556258509,-588.41,0.00016712,2]
[322977745,1713556258519,-637.72,0.00016712,2]
[322977746,1713556258530,-506.33,0.00016712,2]
[322977747,1713556258542,-500.0,0.00016712,2]
[322977748,1713556258552,-1640.11,0.00016712,2]
[322977749,1713556258561,-500.0,0.00016712,2]
[322977750,1713556258571,-981.84,0.00016712,2]
[322977751,1713556258580,-500.0,0.00016712,2]
[322977752,1713556258590,-1476.05,0.00016712,2]
[322977753,1713556258599,-1663.24,0.00016712,2]
[322977754,1713556258609,-542.07,0.00016712,2]
[322977755,1713556258618,-703.21,0.00016712,2]
[322977756,1713556258628,-500.0,0.00016712,2]
[322977757,1713556258637,-500.84389743,0.00016712,2]
[322977758,1713556258646,-1739.58,0.00016712,2]
[322977759,1713556258656,-1441.3,0.00016712,2]
[322977760,1713556258665,-500.0,0.00016712,2]
[322977761,1713556258674,-500.0,0.00016712,2]
[322977762,1713556258684,-1388.44,0.00016712,2]
[322977763,1713556258693,-500.0,0.00016712,2]
[322977764,1713556258703,-804.94,0.00016712,2]
[322977765,1713556258712,-549.41,0.00016712,2]
[322977766,1713556258722,-1074.95,0.00016712,2]
[322977767,1713556258731,-500.0,0.00016712,2]
[322977768,1713556258740,-500.0,0.00016712,2]
[322977769,1713556259065,-874.69,0.00016712,2]
[322977770,1713556259074,-501.2,0.00016712,2]
[322977771,1713556259083,-500.0,0.00016712,2]
[322977772,1713556259092,-500.0,0.00016712,2]
[322977773,1713556259102,-500.0,0.00016712,2]
[322977774,1713556259111,-750.3,0.00016712,2]
[322977775,1713556259120,-500.0,0.00016712,2]
[322977776,1713556259129,-500.0,0.00016712,2]
[322977777,1713556259139,-1156.52,0.00016712,2]
[322977778,1713556259148,-500.0,0.00016712,2]
[322977779,1713556259157,-500.0,0.00016712,2]
[322977780,1713556259168,-693.11,0.00016712,2]
[322977781,1713556259177,-500.0,0.00016712,2]
[322977782,1713556259187,-500.0,0.00016712,2]
[322977783,1713556259197,-233.454269,0.00016712,2]
[322977784,1713556259207,-233.454269,0.00016712,2]
[322977785,1713556259216,-233.454269,0.00016712,2]
[322977786,1713556259226,-233.454269,0.00016712,2]
[322977787,1713556259235,-868.39,0.00016712,2]
[322977788,1713556259245,-500.0,0.00016712,2]
[322977789,1713556259255,-1068.03,0.00016712,2]
[322977790,1713556259265,-1212.41,0.00016712,2]
[322977791,1713556259274,-735.28,0.00016712,2]
[322977792,1713556259284,-1066.73,0.00016712,2]
[322977793,1713556259294,-233.454269,0.00016712,2]
[322977794,1713556259303,-233.454269,0.00016712,2]
[322977795,1713556259315,-233.454269,0.00016712,2]
[322977796,1713556259326,-233.454263,0.00016712,2]
[322977797,1713556259336,-500.0,0.00016712,2]
[322977798,1713556259345,-500.0,0.00016712,2]
[322977799,1713556259355,-1154.9,0.00016712,2]
[322977800,1713556259364,-684.29,0.00016712,2]
[322977801,1713556259373,-1997.79,0.00016712,2]
[322977802,1713556259383,-157.97,0.00016712,2]
[322977803,1713556259393,-832.44,0.00016712,2]
[322977804,1713556259402,-500.0,0.00016712,2]
[322977805,1713556259412,-1339.92,0.00016712,2]
[322977806,1713556259421,-500.0,0.00016712,2]
[322977807,1713556259430,-676.62,0.00016712,2]
[322977808,1713556259440,-500.0,0.00016712,2]
[322977809,1713556259450,-592.72,0.00016712,2]
[322977810,1713556259459,-500.0,0.00016712,2]
[322977811,1713556259469,-1071.64,0.00016712,2]
[322977812,1713556259479,-500.0,0.00016712,2]
[322977813,1713556259488,-500.0,0.00016712,2]
[322977814,1713556259497,-500.0,0.00016712,2]
[322977815,1713556259507,-695.4,0.00016712,2]
[322977816,1713556259516,-151.0,0.00016712,2]
[322977817,1713556259528,-151.0,0.00016712,2]
[322977818,1713556259538,-1005.05,0.00016712,2]
[322977819,1713556259549,-263.003597,0.00016712,2]
[322977820,1713556259559,-754.34,0.00016712,2]
[322977821,1713556259571,-2418.22,0.00016712,2]
[322977822,1713556259581,-500.0,0.00016712,2]
[322977823,1713556259590,-185.155436,0.00016712,2]
[322977824,1713556259599,-185.155436,0.00016712,2]
[322977825,1713556259609,-500.0,0.00016712,2]
[322977826,1713556259619,-500.0,0.00016712,2]
[322977827,1713556259628,-185.155436,0.00016712,2]
[322977828,1713556259638,-185.155436,0.00016712,2]
[322977829,1713556259647,-1312.98,0.00016712,2]
[322977830,1713556259657,-505.31,0.00016712,2]
[322977831,1713556259667,-185.155436,0.00016712,2]
[322977832,1713556259676,-769.77,0.00016712,2]
[322977833,1713556259686,-500.0,0.00016712,2]
[322977834,1713556259695,-185.155436,0.00016712,2]
[322977835,1713556259705,-1140.54,0.00016712,2]
[322977836,1713556259714,-500.0,0.00016712,2]
[322977837,1713556259724,-185.155436,0.00016712,2]
[322977838,1713556259734,-185.155437,0.00016712,2]
[322977839,1713556259743,-500.0,0.00016712,2]
[322977840,1713556259753,-283.57,0.00016712,2]
[322977841,1713556259762,-2058.96,0.00016712,2]
[322977842,1713556259772,-500.0,0.00016712,2]
[322977843,1713556259781,-1121.14,0.00016712,2]
[322977844,1713556259791,-502.84,0.00016712,2]
[322977845,1713556259800,-151.0,0.00016712,2]
[322977846,1713556259809,-151.0,0.00016712,2]
[322977847,1713556259820,-500.0,0.00016712,2]
[322977848,1713556259829,-151.0,0.00016712,2]
[322977849,1713556259839,-151.0,0.00016712,2]